[Event "Titled Tuesday Blitz April 11 Early 2023"]
[White "Forgacs, Attila Jr."]
[Black "Koridze, Lile"]
[WhiteFideId "773654"]
[BlackFideId "13612514"]
[WhiteElo "2168"]
[BlackElo "2047"]
[Result "0-1"]
[Round "11"]
[TimeControl "180+2"]
[Date "2023.04.11"]
[WhiteClock "0:00:07"]
[BlackClock "0:01:44"]

1. a3 {[%clk 0:03:00]}  d5 {[%clk 0:02:48]} 2. Nf3 {[%clk 0:03:00]}  Nf6 {[%clk 0:02:48]} 3. g3 {[%clk 0:03:00]}  e6 {[%clk 0:02:48]} 4. Bg2 {[%clk 0:03:00]}  Be7 {[%clk 0:02:48]} 5. O-O {[%clk 0:03:00]}  O-O {[%clk 0:02:49]} 6. b4 {[%clk 0:03:00]}  c5 {[%clk 0:02:49]} 7. bxc5 {[%clk 0:02:59]}  Bxc5 {[%clk 0:02:50]} 8. Bb2 {[%clk 0:03:00]}  Nc6 {[%clk 0:02:50]} 9. d3 {[%clk 0:03:00]}  h6 {[%clk 0:02:49]} 10. Nbd2 {[%clk 0:02:59]}  Qe7 {[%clk 0:02:49]} 11. e4 {[%clk 0:02:58]}  dxe4 {[%clk 0:02:46]} 12. dxe4 {[%clk 0:02:53]}  Rd8 {[%clk 0:02:45]} 13. Qe2 {[%clk 0:02:49]}  e5 {[%clk 0:02:45]} 14. Nc4 {[%clk 0:02:39]}  Bg4 {[%clk 0:02:44]} 15. Rad1 {[%clk 0:02:32]}  Bd4 {[%clk 0:02:38]} 16. h3 {[%clk 0:02:13]}  Bxb2 {[%clk 0:02:35]} 17. Nxb2 {[%clk 0:02:01]}  Nd4 {[%clk 0:02:34]} 18. Rxd4 {[%clk 0:01:58]}  Rxd4 {[%clk 0:02:32]} 19. hxg4 {[%clk 0:01:57]}  Rxe4 {[%clk 0:02:32]} 20. Qb5 {[%clk 0:01:44]}  a6 {[%clk 0:02:26]} 21. Qb3 {[%clk 0:01:44]}  Rxg4 {[%clk 0:02:26]} 22. Nc4 {[%clk 0:01:35]}  e4 {[%clk 0:02:19]} 23. Nfe5 {[%clk 0:01:28]}  Rg5 {[%clk 0:02:18]} 24. Nb6 {[%clk 0:01:12]}  Re8 {[%clk 0:02:16]} 25. Nec4 {[%clk 0:01:09]}  Rb5 {[%clk 0:02:11]} 26. Qc3 {[%clk 0:01:05]}  Qc5 {[%clk 0:02:10]} 27. Na4 {[%clk 0:01:00]}  Qe7 {[%clk 0:02:06]} 28. Rd1 {[%clk 0:00:48]}  Rc8 {[%clk 0:02:06]} 29. Qd4 {[%clk 0:00:41]}  Rd5 {[%clk 0:02:04]} 30. Qa1 {[%clk 0:00:38]}  Rxd1+ {[%clk 0:02:04]} 31. Qxd1 {[%clk 0:00:39]}  Rxc4 {[%clk 0:02:04]} 32. Nb6 {[%clk 0:00:37]}  Rc6 {[%clk 0:02:00]} 33. Nd5 {[%clk 0:00:34]}  Nxd5 {[%clk 0:01:54]} 34. Qxd5 {[%clk 0:00:35]}  Re6 {[%clk 0:01:54]} 35. Qc4 {[%clk 0:00:29]}  g6 {[%clk 0:01:53]} 36. a4 {[%clk 0:00:26]}  e3 {[%clk 0:01:53]} 37. fxe3 {[%clk 0:00:26]}  Rxe3 {[%clk 0:01:53]} 38. Kh2 {[%clk 0:00:22]}  Qe5 {[%clk 0:01:51]} 39. Qg4 {[%clk 0:00:15]}  Kg7 {[%clk 0:01:50]} 40. Bxb7 {[%clk 0:00:12]}  Re2+ {[%clk 0:01:49]} 41. Bg2 {[%clk 0:00:11]}  Rxc2 {[%clk 0:01:48]} 42. Kh3 {[%clk 0:00:10]}  Rc3 {[%clk 0:01:47]} 43. Be4 {[%clk 0:00:09]}  h5 {[%clk 0:01:45]} 44. Qh4 {[%clk 0:00:07]}  Rc4 {[%clk 0:01:44]} 0-1


[Site "https://www.chess.com"]

[Event "Titled Tuesday Blitz April 11 Early 2023"]
[White "Hadzimanolis, Antonios"]
[Black "KorolDimitriy75"]
[WhiteFideId "4202813"]
[WhiteElo "2242"]
[BlackElo "2371"]
[Result "0-1"]
[Round "11"]
[TimeControl "180+2"]
[Date "2023.04.11"]
[WhiteClock "0:00:08"]
[BlackClock "0:00:06"]

1. d4 {[%clk 0:03:00]}  Nf6 {[%clk 0:02:59]} 2. c4 {[%clk 0:02:58]}  c5 {[%clk 0:02:59]} 3. d5 {[%clk 0:02:57]}  b5 {[%clk 0:02:59]} 4. cxb5 {[%clk 0:02:57]}  a6 {[%clk 0:03:00]} 5. e3 {[%clk 0:02:57]}  axb5 {[%clk 0:02:59]} 6. Bxb5 {[%clk 0:02:57]}  Qa5+ {[%clk 0:03:00]} 7. Nc3 {[%clk 0:02:57]}  Bb7 {[%clk 0:03:00]} 8. Bd2 {[%clk 0:02:51]}  Qb6 {[%clk 0:02:58]} 9. Qb3 {[%clk 0:02:35]}  e6 {[%clk 0:02:55]} 10. e4 {[%clk 0:02:35]}  Nxe4 {[%clk 0:02:41]} 11. Nxe4 {[%clk 0:02:32]}  Bxd5 {[%clk 0:02:40]} 12. Qd3 {[%clk 0:02:28]}  Qb7 {[%clk 0:02:20]} 13. f3 {[%clk 0:02:01]}  c4 {[%clk 0:02:18]} 14. Bxc4 {[%clk 0:01:54]}  Bxc4 {[%clk 0:02:18]} 15. Qxc4 {[%clk 0:01:55]}  d5 {[%clk 0:02:17]} 16. Qc2 {[%clk 0:01:17]}  dxe4 {[%clk 0:01:59]} 17. fxe4 {[%clk 0:01:18]}  Nc6 {[%clk 0:01:50]} 18. Nf3 {[%clk 0:01:17]}  Nb4 {[%clk 0:01:47]} 19. Qb3 {[%clk 0:01:17]}  Qxe4+ {[%clk 0:01:45]} 20. Kd1 {[%clk 0:01:12]}  Be7 {[%clk 0:00:59]} 21. Re1 {[%clk 0:01:11]}  Qd3 {[%clk 0:00:59]} 22. Re3 {[%clk 0:00:51]}  Qf1+ {[%clk 0:00:42]} 23. Ne1 {[%clk 0:00:50]}  Nd5 {[%clk 0:00:40]} 24. Rf3 {[%clk 0:00:45]}  Qa6 {[%clk 0:00:36]} 25. Rc1 {[%clk 0:00:37]}  O-O {[%clk 0:00:36]} 26. a3 {[%clk 0:00:36]}  Rfb8 {[%clk 0:00:35]} 27. Qc2 {[%clk 0:00:34]}  Rd8 {[%clk 0:00:30]} 28. Qc6 {[%clk 0:00:30]}  Qa7 {[%clk 0:00:19]} 29. Ke2 {[%clk 0:00:27]}  Qg1 {[%clk 0:00:18]} 30. Rf1 {[%clk 0:00:26]}  Qxh2 {[%clk 0:00:17]} 31. Nf3 {[%clk 0:00:20]}  Qxg2+ {[%clk 0:00:17]} 32. Rf2 {[%clk 0:00:21]}  Qg4 {[%clk 0:00:15]} 33. Rg1 {[%clk 0:00:20]}  Qe4+ {[%clk 0:00:13]} 34. Kf1 {[%clk 0:00:20]}  Ne3+ {[%clk 0:00:13]} 35. Bxe3 {[%clk 0:00:19]}  Qxc6 {[%clk 0:00:14]} 36. Bd4 {[%clk 0:00:16]}  Rxd4 {[%clk 0:00:11]} 37. Nxd4 {[%clk 0:00:16]}  Qc4+ {[%clk 0:00:10]} 38. Ne2 {[%clk 0:00:16]}  Bc5 {[%clk 0:00:09]} 39. Rf4 {[%clk 0:00:15]}  Qd3 {[%clk 0:00:06]} 40. Rgg4 {[%clk 0:00:13]}  Bf8 {[%clk 0:00:05]} 41. Rd4 {[%clk 0:00:12]}  Qb1+ {[%clk 0:00:04]} 42. Kf2 {[%clk 0:00:12]}  Qxb2 {[%clk 0:00:04]} 43. Rc4 {[%clk 0:00:12]}  Qxa3 {[%clk 0:00:04]} 44. Rg3 {[%clk 0:00:12]}  Qa7+ {[%clk 0:00:03]} 45. Kg2 {[%clk 0:00:11]}  g6 {[%clk 0:00:03]} 46. Rf3 {[%clk 0:00:08]}  Qb7 {[%clk 0:00:03]} 47. Nd4 {[%clk 0:00:08]}  Ra2+ {[%clk 0:00:03]} 48. Kg3 {[%clk 0:00:08]}  Qb2 {[%clk 0:00:03]} 49. Rc2 {[%clk 0:00:07]}  Qxd4 {[%clk 0:00:03]} 50. Rxa2 {[%clk 0:00:07]}  Bd6+ {[%clk 0:00:02]} 51. Kg2 {[%clk 0:00:07]}  Qd5 {[%clk 0:00:01]} 52. Ra6 {[%clk 0:00:05]}  Kg7 {[%clk 0:00:01]} 53. Rxd6 {[%clk 0:00:05]}  Qxd6 {[%clk 0:00:01]} 54. Re3 {[%clk 0:00:05]}  Qd5+ {[%clk 0:00:01]} 55. Kf2 {[%clk 0:00:05]}  h5 {[%clk 0:00:01]} 56. Rf3 {[%clk 0:00:06]}  Qxf3+ {[%clk 0:00:01]} 57. Kxf3 {[%clk 0:00:06]}  Kf6 {[%clk 0:00:02]} 58. Kf4 {[%clk 0:00:06]}  g5+ {[%clk 0:00:03]} 59. Ke4 {[%clk 0:00:07]}  Kg6 {[%clk 0:00:04]} 60. Kf3 {[%clk 0:00:08]}  f5 {[%clk 0:00:05]} 61. Kg2 {[%clk 0:00:08]}  e5 {[%clk 0:00:06]} 0-1


[Site "https://www.chess.com"]

[Event "Titled Tuesday Blitz April 11 Early 2023"]
[White "Minko, Dmitry"]
[Black "Dishman, Stephen"]
[WhiteFideId "24188468"]
[BlackFideId "403024"]
[WhiteElo "2147"]
[BlackElo "2204"]
[Result "1/2-1/2"]
[Round "11"]
[TimeControl "180+2"]
[Date "2023.04.11"]
[WhiteClock "0:00:15"]
[BlackClock "0:00:42"]

1. e4 {[%clk 0:03:00]}  c5 {[%clk 0:02:59]} 2. Nf3 {[%clk 0:03:00]}  g6 {[%clk 0:02:59]} 3. c4 {[%clk 0:02:58]}  Nc6 {[%clk 0:02:59]} 4. d4 {[%clk 0:02:58]}  cxd4 {[%clk 0:02:59]} 5. Nxd4 {[%clk 0:02:59]}  Nf6 {[%clk 0:02:59]} 6. Nc3 {[%clk 0:02:59]}  d6 {[%clk 0:02:59]} 7. Be2 {[%clk 0:02:59]}  Nxd4 {[%clk 0:02:59]} 8. Qxd4 {[%clk 0:02:58]}  Bg7 {[%clk 0:03:00]} 9. Be3 {[%clk 0:02:59]}  O-O {[%clk 0:02:59]} 10. Qd2 {[%clk 0:02:59]}  a5 {[%clk 0:02:58]} 11. f3 {[%clk 0:02:56]}  a4 {[%clk 0:02:58]} 12. O-O {[%clk 0:02:51]}  Qa5 {[%clk 0:02:55]} 13. Rfc1 {[%clk 0:02:43]}  Be6 {[%clk 0:02:54]} 14. Rab1 {[%clk 0:02:43]}  Rfc8 {[%clk 0:02:52]} 15. Nb5 {[%clk 0:02:34]}  Qxd2 {[%clk 0:02:45]} 16. Bxd2 {[%clk 0:02:35]}  Nd7 {[%clk 0:02:41]} 17. Bb4 {[%clk 0:02:24]}  Nc5 {[%clk 0:02:38]} 18. Rc2 {[%clk 0:02:20]}  f5 {[%clk 0:02:34]} 19. Bxc5 {[%clk 0:02:09]}  Rxc5 {[%clk 0:02:32]} 20. Bd3 {[%clk 0:02:09]}  Rac8 {[%clk 0:02:19]} 21. b3 {[%clk 0:01:57]}  axb3 {[%clk 0:02:14]} 22. axb3 {[%clk 0:01:57]}  fxe4 {[%clk 0:02:00]} 23. Bxe4 {[%clk 0:01:29]}  d5 {[%clk 0:02:00]} 24. Bd3 {[%clk 0:01:29]}  dxc4 {[%clk 0:01:58]} 25. bxc4 {[%clk 0:01:29]}  Bxc4 {[%clk 0:01:57]} 26. Rbc1 {[%clk 0:01:25]}  Bxb5 {[%clk 0:01:54]} 27. Rxc5 {[%clk 0:01:21]}  Rxc5 {[%clk 0:01:29]} 28. Rxc5 {[%clk 0:01:20]}  Bxd3 {[%clk 0:01:22]} 29. Rc7 {[%clk 0:01:19]}  b5 {[%clk 0:01:15]} 30. Kf2 {[%clk 0:01:17]}  b4 {[%clk 0:01:14]} 31. Ke3 {[%clk 0:01:17]}  Bf5 {[%clk 0:01:09]} 32. g4 {[%clk 0:01:11]}  Be6 {[%clk 0:01:04]} 33. Rxe7 {[%clk 0:01:08]}  Ba2 {[%clk 0:00:58]} 34. Rb7 {[%clk 0:00:22]}  b3 {[%clk 0:00:58]} 35. Rb8+ {[%clk 0:00:23]}  Kf7 {[%clk 0:00:58]} 36. Rb7+ {[%clk 0:00:23]}  Ke6 {[%clk 0:00:50]} 37. Rxg7 {[%clk 0:00:15]}  b2 {[%clk 0:00:50]} 38. Rb7 {[%clk 0:00:15]}  b1=Q {[%clk 0:00:49]} 39. Rxb1 {[%clk 0:00:16]}  Bxb1 {[%clk 0:00:49]} 40. h4 {[%clk 0:00:17]}  Kf6 {[%clk 0:00:48]} 41. Kf4 {[%clk 0:00:17]}  h6 {[%clk 0:00:45]} 42. g5+ {[%clk 0:00:14]}  hxg5+ {[%clk 0:00:44]} 43. hxg5+ {[%clk 0:00:15]}  Ke6 {[%clk 0:00:45]} 44. Kg3 {[%clk 0:00:14]}  Ke5 {[%clk 0:00:44]} 45. f4+ {[%clk 0:00:14]}  Kd4 {[%clk 0:00:44]} 46. Kf3 {[%clk 0:00:15]}  Be4+ {[%clk 0:00:43]} 47. Kg4 {[%clk 0:00:15]}  Ke3 {[%clk 0:00:43]} 48. f5 {[%clk 0:00:15]}  Bxf5+ {[%clk 0:00:43]} 49. Kh4 {[%clk 0:00:15]}  Kf4 {[%clk 0:00:42]} 1/2-1/2


[Site "https://www.chess.com"]

[Event "Titled Tuesday Blitz April 11 Early 2023"]
[White "Chernov, Mikhail"]
[Black "mjelcic"]
[WhiteFideId "24143170"]
[WhiteElo "2113"]
[BlackElo "2273"]
[Result "1-0"]
[Round "11"]
[TimeControl "180+2"]
[Date "2023.04.11"]
[WhiteClock "0:00:15"]
[BlackClock "0:00:12"]

1. e4 {[%clk 0:03:00]}  e5 {[%clk 0:02:59]} 2. Nc3 {[%clk 0:03:00]}  Nc6 {[%clk 0:02:48]} 3. Bc4 {[%clk 0:03:00]}  Nf6 {[%clk 0:02:44]} 4. d3 {[%clk 0:03:00]}  Bc5 {[%clk 0:02:42]} 5. f4 {[%clk 0:03:00]}  O-O {[%clk 0:02:39]} 6. Nf3 {[%clk 0:03:00]}  d6 {[%clk 0:02:35]} 7. f5 {[%clk 0:03:01]}  Nd4 {[%clk 0:02:33]} 8. Bg5 {[%clk 0:02:56]}  c6 {[%clk 0:02:27]} 9. a4 {[%clk 0:02:33]}  h6 {[%clk 0:02:18]} 10. Bh4 {[%clk 0:02:24]}  g5 {[%clk 0:02:18]} 11. Nxg5 {[%clk 0:02:22]}  d5 {[%clk 0:01:58]} 12. exd5 {[%clk 0:02:04]}  cxd5 {[%clk 0:01:58]} 13. Nf3 {[%clk 0:01:51]}  dxc4 {[%clk 0:01:52]} 14. Ne4 {[%clk 0:01:44]}  Be7 {[%clk 0:01:48]} 15. Nxd4 {[%clk 0:01:43]}  exd4 {[%clk 0:01:47]} 16. Bxf6 {[%clk 0:01:21]}  Bxf6 {[%clk 0:01:47]} 17. Qh5 {[%clk 0:01:18]}  Re8 {[%clk 0:01:31]} 18. O-O {[%clk 0:01:13]}  Kh7 {[%clk 0:01:10]} 19. Rf3 {[%clk 0:01:09]}  Qe7 {[%clk 0:01:05]} 20. Rh3 {[%clk 0:00:47]}  Bg7 {[%clk 0:00:44]} 21. f6 {[%clk 0:00:43]}  Qe5 {[%clk 0:00:44]} 22. Qxf7 {[%clk 0:00:35]}  Rg8 {[%clk 0:00:36]} 23. Rg3 {[%clk 0:00:25]}  Qxg3 {[%clk 0:00:14]} 24. hxg3 {[%clk 0:00:20]}  Bf5 {[%clk 0:00:14]} 25. fxg7 {[%clk 0:00:16]}  Bg6 {[%clk 0:00:12]} 26. Nf6# {[%clk 0:00:15]} 1-0


[Site "https://www.chess.com"]

[Event "Titled Tuesday Blitz April 11 Early 2023"]
[White "micke12a"]
[Black "Mouhamad, Joachim"]
[BlackFideId "656410"]
[WhiteElo "2317"]
[BlackElo "2125"]
[Result "0-1"]
[Round "11"]
[TimeControl "180+2"]
[Date "2023.04.11"]
[WhiteClock "0:00:05"]
[BlackClock "0:00:04"]

1. d4 {[%clk 0:02:56]}  d5 {[%clk 0:02:58]} 2. Nc3 {[%clk 0:02:56]}  Nf6 {[%clk 0:02:54]} 3. Bf4 {[%clk 0:02:55]}  c5 {[%clk 0:02:53]} 4. e4 {[%clk 0:02:54]}  Nxe4 {[%clk 0:02:49]} 5. Nxe4 {[%clk 0:02:54]}  dxe4 {[%clk 0:02:48]} 6. dxc5 {[%clk 0:02:55]}  Qa5+ {[%clk 0:02:37]} 7. c3 {[%clk 0:02:54]}  Qxc5 {[%clk 0:02:32]} 8. Qa4+ {[%clk 0:02:54]}  Bd7 {[%clk 0:02:28]} 9. Qxe4 {[%clk 0:02:53]}  Nc6 {[%clk 0:02:08]} 10. Bd3 {[%clk 0:02:45]}  e5 {[%clk 0:02:03]} 11. Be3 {[%clk 0:02:44]}  Qe7 {[%clk 0:01:54]} 12. Qf3 {[%clk 0:02:30]}  g6 {[%clk 0:01:47]} 13. g4 {[%clk 0:02:25]}  Bg7 {[%clk 0:01:43]} 14. O-O-O {[%clk 0:02:23]}  O-O {[%clk 0:01:37]} 15. g5 {[%clk 0:02:23]}  Rac8 {[%clk 0:01:35]} 16. Kb1 {[%clk 0:02:21]}  Rfe8 {[%clk 0:01:31]} 17. Be4 {[%clk 0:02:13]}  Nd4 {[%clk 0:01:23]} 18. Ne2 {[%clk 0:01:48]}  Nxf3 {[%clk 0:01:16]} 19. Bxf3 {[%clk 0:01:49]}  Bf5+ {[%clk 0:01:10]} 20. Ka1 {[%clk 0:01:48]}  Bc2 {[%clk 0:01:11]} 21. Rd2 {[%clk 0:01:48]}  e4 {[%clk 0:01:11]} 22. Bg4 {[%clk 0:01:48]}  Bd3 {[%clk 0:01:07]} 23. Bxc8 {[%clk 0:01:47]}  Rxc8 {[%clk 0:01:08]} 24. Nf4 {[%clk 0:01:43]}  b5 {[%clk 0:01:04]} 25. Nxd3 {[%clk 0:01:29]}  exd3 {[%clk 0:01:03]} 26. Rxd3 {[%clk 0:01:30]}  b4 {[%clk 0:01:00]} 27. cxb4 {[%clk 0:01:10]}  Qxb4 {[%clk 0:00:59]} 28. Rb3 {[%clk 0:01:10]}  Qe4 {[%clk 0:00:53]} 29. Rd1 {[%clk 0:01:09]}  a5 {[%clk 0:00:45]} 30. a3 {[%clk 0:01:02]}  a4 {[%clk 0:00:39]} 31. Rb4 {[%clk 0:01:00]}  Qc2 {[%clk 0:00:36]} 32. Rd2 {[%clk 0:00:56]}  Qc1+ {[%clk 0:00:33]} 33. Ka2 {[%clk 0:00:56]}  Qh1 {[%clk 0:00:24]} 34. h4 {[%clk 0:00:52]}  h5 {[%clk 0:00:24]} 35. gxh6 {[%clk 0:00:51]}  Bf6 {[%clk 0:00:24]} 36. Rxa4 {[%clk 0:00:46]}  Rc1 {[%clk 0:00:23]} 37. Rf4 {[%clk 0:00:30]}  Ra1+ {[%clk 0:00:22]} 38. Kb3 {[%clk 0:00:30]}  Qb7+ {[%clk 0:00:20]} 39. Rb4 {[%clk 0:00:31]}  Qe7 {[%clk 0:00:18]} 40. Rb8+ {[%clk 0:00:30]}  Kh7 {[%clk 0:00:18]} 41. Rb4 {[%clk 0:00:21]}  Qe6+ {[%clk 0:00:18]} 42. Ka4 {[%clk 0:00:21]}  Rh1 {[%clk 0:00:10]} 43. Rb5 {[%clk 0:00:08]}  Rxh4+ {[%clk 0:00:10]} 44. b4 {[%clk 0:00:08]}  Qe4 {[%clk 0:00:08]} 45. Rbd5 {[%clk 0:00:05]}  Rh5 {[%clk 0:00:07]} 46. R5d3 {[%clk 0:00:04]}  Qa8+ {[%clk 0:00:07]} 47. Kb3 {[%clk 0:00:04]}  Rb5 {[%clk 0:00:06]} 48. a4 {[%clk 0:00:05]}  Rb8 {[%clk 0:00:06]} 49. b5 {[%clk 0:00:06]}  g5 {[%clk 0:00:04]} 50. Rd7 {[%clk 0:00:06]}  Kxh6 {[%clk 0:00:04]} 51. Rxf7 {[%clk 0:00:07]}  Kg6 {[%clk 0:00:05]} 52. Rfd7 {[%clk 0:00:06]}  Qe4 {[%clk 0:00:04]} 53. R7d3 {[%clk 0:00:06]}  Qe6+ {[%clk 0:00:04]} 54. Rd5 {[%clk 0:00:06]}  Rc8 {[%clk 0:00:05]} 55. Ka3 {[%clk 0:00:03]}  Qe4 {[%clk 0:00:05]} 56. R5d3 {[%clk 0:00:02]}  Qc4 {[%clk 0:00:05]} 57. Rb3 {[%clk 0:00:02]}  Qc1+ {[%clk 0:00:05]} 58. Kb4 {[%clk 0:00:02]}  Qa1 {[%clk 0:00:04]} 59. Rbb2 {[%clk 0:00:02]}  Ra8 {[%clk 0:00:04]} 60. Rd6 {[%clk 0:00:03]}  Qxa4+ {[%clk 0:00:04]} 61. Kc5 {[%clk 0:00:03]}  Rc8+ {[%clk 0:00:04]} 62. Kd5 {[%clk 0:00:04]}  Qa8+ {[%clk 0:00:03]} 63. Ke6 {[%clk 0:00:05]}  Re8+ {[%clk 0:00:03]} 64. Kd7 {[%clk 0:00:05]}  Qc8# {[%clk 0:00:04]} 0-1


[Site "https://www.chess.com"]

[Event "Titled Tuesday Blitz April 11 Early 2023"]
[White "Palencia Morales, Wilson Guillermo"]
[Black "MunichMouse"]
[WhiteFideId "4401859"]
[WhiteElo "2139"]
[BlackElo "2317"]
[Result "1-0"]
[Round "11"]
[TimeControl "180+2"]
[Date "2023.04.11"]
[WhiteClock "0:01:01"]
[BlackClock "0:00:05"]

1. e4 {[%clk 0:03:00]}  c5 {[%clk 0:02:59]} 2. c3 {[%clk 0:03:00]}  d6 {[%clk 0:02:59]} 3. d4 {[%clk 0:02:58]}  Nf6 {[%clk 0:02:59]} 4. Bd3 {[%clk 0:02:56]}  Qc7 {[%clk 0:02:59]} 5. Nf3 {[%clk 0:02:55]}  g6 {[%clk 0:02:59]} 6. O-O {[%clk 0:02:55]}  Bg7 {[%clk 0:03:00]} 7. h3 {[%clk 0:02:55]}  e5 {[%clk 0:02:59]} 8. d5 {[%clk 0:02:54]}  h6 {[%clk 0:02:57]} 9. c4 {[%clk 0:02:54]}  O-O {[%clk 0:02:57]} 10. Nc3 {[%clk 0:02:54]}  Ne8 {[%clk 0:02:58]} 11. Nd2 {[%clk 0:02:39]}  f5 {[%clk 0:02:56]} 12. f3 {[%clk 0:02:39]}  f4 {[%clk 0:02:55]} 13. a3 {[%clk 0:02:37]}  g5 {[%clk 0:02:49]} 14. b4 {[%clk 0:02:37]}  b6 {[%clk 0:02:46]} 15. Nb3 {[%clk 0:02:36]}  h5 {[%clk 0:02:44]} 16. Kf2 {[%clk 0:02:36]}  Qe7 {[%clk 0:02:43]} 17. Ke2 {[%clk 0:02:35]}  g4 {[%clk 0:02:42]} 18. hxg4 {[%clk 0:02:34]}  hxg4 {[%clk 0:02:43]} 19. Kd2 {[%clk 0:02:34]}  a5 {[%clk 0:02:39]} 20. bxa5 {[%clk 0:02:30]}  bxa5 {[%clk 0:02:39]} 21. Nb5 {[%clk 0:02:30]}  a4 {[%clk 0:02:37]} 22. Kc2 {[%clk 0:02:26]}  axb3+ {[%clk 0:02:37]} 23. Kxb3 {[%clk 0:02:27]}  Nc7 {[%clk 0:02:27]} 24. Bb2 {[%clk 0:02:23]}  Nxb5 {[%clk 0:02:24]} 25. cxb5 {[%clk 0:02:23]}  Qa7 {[%clk 0:02:25]} 26. a4 {[%clk 0:02:22]}  Nd7 {[%clk 0:02:10]} 27. a5 {[%clk 0:02:07]}  c4+ {[%clk 0:02:09]} 28. Bxc4 {[%clk 0:02:06]}  Qe3+ {[%clk 0:02:09]} 29. Bc3 {[%clk 0:02:01]}  Nc5+ {[%clk 0:02:08]} 30. Kb4 {[%clk 0:02:00]}  Ba6 {[%clk 0:00:58]} 31. Qe2 {[%clk 0:01:54]}  Qxe2 {[%clk 0:00:43]} 32. Bxe2 {[%clk 0:01:55]}  Rfb8 {[%clk 0:00:43]} 33. Rfb1 {[%clk 0:01:47]}  Rb7 {[%clk 0:00:41]} 34. Kc4 {[%clk 0:01:32]}  Rab8 {[%clk 0:00:26]} 35. bxa6 {[%clk 0:01:26]}  Nxa6 {[%clk 0:00:17]} 36. Rxb7 {[%clk 0:01:25]}  Rxb7 {[%clk 0:00:17]} 37. Kd3 {[%clk 0:01:20]}  Nc5+ {[%clk 0:00:10]} 38. Kc2 {[%clk 0:01:20]}  gxf3 {[%clk 0:00:10]} 39. gxf3 {[%clk 0:01:19]}  Bf6 {[%clk 0:00:10]} 40. a6 {[%clk 0:01:13]}  Ra7 {[%clk 0:00:10]} 41. Bb4 {[%clk 0:01:13]}  Bd8 {[%clk 0:00:08]} 42. Bxc5 {[%clk 0:01:08]}  dxc5 {[%clk 0:00:08]} 43. d6 {[%clk 0:01:06]}  Kf7 {[%clk 0:00:08]} 44. Bc4+ {[%clk 0:01:06]}  Ke8 {[%clk 0:00:09]} 45. Rg1 {[%clk 0:01:03]}  Rg7 {[%clk 0:00:05]} 46. Rxg7 {[%clk 0:01:01]} 1-0


[Site "https://www.chess.com"]

[Event "Titled Tuesday Blitz April 11 Early 2023"]
[White "Skaric, Djuro"]
[Black "Zacurdajev, Dmitry"]
[WhiteFideId "934569"]
[BlackFideId "4196309"]
[WhiteElo "2282"]
[BlackElo "2189"]
[Result "1-0"]
[Round "11"]
[TimeControl "180+2"]
[Date "2023.04.11"]
[WhiteClock "0:01:37"]
[BlackClock "0:00:08"]

1. g3 {[%clk 0:03:00]}  d5 {[%clk 0:02:59]} 2. Bg2 {[%clk 0:03:00]}  Nf6 {[%clk 0:03:00]} 3. d3 {[%clk 0:02:57]}  e6 {[%clk 0:03:01]} 4. Nf3 {[%clk 0:02:55]}  c5 {[%clk 0:03:01]} 5. O-O {[%clk 0:02:56]}  Nc6 {[%clk 0:03:02]} 6. h3 {[%clk 0:02:57]}  Be7 {[%clk 0:03:02]} 7. Nc3 {[%clk 0:02:57]}  O-O {[%clk 0:03:03]} 8. e4 {[%clk 0:02:58]}  a6 {[%clk 0:03:01]} 9. g4 {[%clk 0:02:57]}  d4 {[%clk 0:02:58]} 10. Ne2 {[%clk 0:02:57]}  b5 {[%clk 0:02:59]} 11. Nd2 {[%clk 0:02:56]}  e5 {[%clk 0:02:53]} 12. f4 {[%clk 0:02:55]}  exf4 {[%clk 0:02:53]} 13. Nxf4 {[%clk 0:02:54]}  Ne5 {[%clk 0:02:44]} 14. Nf3 {[%clk 0:02:54]}  Bd6 {[%clk 0:02:29]} 15. g5 {[%clk 0:02:53]}  Nfd7 {[%clk 0:02:14]} 16. Nd5 {[%clk 0:02:53]}  Nb6 {[%clk 0:02:12]} 17. Nxb6 {[%clk 0:02:52]}  Qxb6 {[%clk 0:02:12]} 18. Bf4 {[%clk 0:02:49]}  Nxf3+ {[%clk 0:02:12]} 19. Qxf3 {[%clk 0:02:49]}  Bxf4 {[%clk 0:02:13]} 20. Qxf4 {[%clk 0:02:49]}  c4 {[%clk 0:02:08]} 21. Rae1 {[%clk 0:02:48]}  b4 {[%clk 0:02:01]} 22. b3 {[%clk 0:02:31]}  cxd3 {[%clk 0:01:58]} 23. cxd3 {[%clk 0:02:29]}  a5 {[%clk 0:01:59]} 24. e5 {[%clk 0:02:28]}  Ra7 {[%clk 0:01:58]} 25. h4 {[%clk 0:02:26]}  Re7 {[%clk 0:01:17]} 26. h5 {[%clk 0:02:24]}  a4 {[%clk 0:00:52]} 27. Be4 {[%clk 0:02:23]}  Bb7 {[%clk 0:00:50]} 28. Bf5 {[%clk 0:02:07]}  Qc6 {[%clk 0:00:46]} 29. Be4 {[%clk 0:02:03]}  Qc7 {[%clk 0:00:40]} 30. g6 {[%clk 0:01:57]}  Bxe4 {[%clk 0:00:36]} 31. Rxe4 {[%clk 0:01:54]}  hxg6 {[%clk 0:00:14]} 32. hxg6 {[%clk 0:01:52]}  Qc6 {[%clk 0:00:14]} 33. e6 {[%clk 0:01:45]}  f5 {[%clk 0:00:08]} 34. Qh4 {[%clk 0:01:37]} 1-0


[Site "https://www.chess.com"]